fUST/lending_fUST_20250518
["ID","MTS","AMOUNT","RATE_DAILY","PERIOD"]
[361380656,1747535434962,-400.34216205,0.00013698,2]
[361380657,1747535434971,-506.26503884,0.00013698,2]
[361380658,1747535434980,-450.0,0.00013698,2]
[361380659,1747535434989,-455.28498698,0.00013698,2]
[361380660,1747535434998,-402.99664073,0.00013698,2]
[361380661,1747535435007,-589.93339944,0.00013698,2]
[361380662,1747535435016,-402.77382438,0.00013698,2]
[361380663,1747535435025,-151.0,0.00013698,2]
[361380664,1747535435034,-152.256059,0.00013698,2]
[361380665,1747535435043,-408.17687964,0.00013698,2]
[361380666,1747535435052,-405.96972828,0.00013698,2]
[361380667,1747535435061,-477.5610653,0.00013698,2]
[361380668,1747535435071,-449.48935003,0.00013698,2]
[361380669,1747535435079,-450.0,0.00013698,2]
[361380670,1747535435088,-404.6699969,0.00013698,2]
[361380671,1747535435098,-402.05663431,0.00013698,2]
[361380672,1747535435107,-450.0,0.00013698,2]
[361380673,1747535435117,-409.71835126,0.00013698,2]
[361380674,1747535435126,-405.12635362,0.00013698,2]
[361380675,1747535435136,-409.42958566,0.00013698,2]
[361380676,1747535435145,-415.86965132,0.00013698,2]
[361380677,1747535435154,-403.31824574,0.00013698,2]
[361380678,1747535435163,-457.52399822,0.00013698,2]
[361380679,1747535435172,-375.158501,0.00013698,2]
[361380680,1747535435181,-456.19929549,0.00013698,2]
[361380681,1747535435191,-417.83289336,0.00013698,2]
[361380682,1747535435200,-450.0,0.00013698,2]
[361380683,1747535435209,-401.85422467,0.00013698,2]
[361380684,1747535435219,-514.00457345,0.00013698,2]
[361380685,1747535435227,-403.2993178,0.00013698,2]
[361380686,1747535435238,-412.42469789,0.00013698,2]
[361380687,1747535435255,-565.16952225,0.00013698,2]
[361380688,1747535435264,-403.93670139,0.00013698,2]
[361380689,1747535435274,-450.0,0.00013698,2]
[361380690,1747535435284,-450.0,0.00013698,2]
[361380691,1747535435295,-412.39691724,0.00013698,2]
[361380692,1747535435304,-450.0,0.00013698,2]
[361380693,1747535435313,-450.0,0.00013698,2]
[361380694,1747535435323,-450.0,0.00013698,2]
[361380695,1747535435332,-554.43843662,0.00013698,2]
[361380696,1747535435342,-404.42995992,0.00013698,2]
[361380697,1747535435351,-416.55740732,0.00013698,2]
[361380698,1747535435363,-427.46832488,0.00013698,2]
[361380699,1747535435371,-466.30152118,0.00013698,2]
[361380700,1747535435381,-411.42804456,0.00013698,2]
[361380701,1747535435390,-450.0,0.00013698,2]
[361380702,1747535435400,-404.13739505,0.00013698,2]
[361380703,1747535435409,-450.0,0.00013698,2]
[361380704,1747535435419,-281.79353406,0.00013698,2]
[361380705,1747535435428,-450.0,0.00013698,2]
[361380706,1747535435437,-403.7569063,0.00013698,2]
[361380707,1747535435447,-416.73760069,0.00013698,2]
[361380708,1747535435456,-424.05813785,0.00013698,2]
[361380709,1747535435465,-450.0,0.00013698,2]
[361380710,1747535435474,-450.0,0.00013698,2]
[361380711,1747535435484,-450.0,0.00013698,2]
[361380712,1747535435493,-405.75035083,0.00013698,2]
[361380713,1747535435502,-450.0,0.00013698,2]
[361380714,1747535435511,-188.0,0.00013698,2]
[361380715,1747535435521,-449.57668027,0.00013698,2]
[361380716,1747535435530,-450.0,0.00013698,2]
[361380717,1747535435539,-478.68339153,0.00013698,2]
[361380718,1747535435549,-412.87414753,0.00013698,2]
[361380719,1747535435558,-450.0,0.00013698,2]
[361380720,1747535435567,-151.0,0.00013698,2]
[361380721,1747535435577,-151.0,0.00013698,2]
[361380722,1747535435586,-151.0,0.00013698,2]
[361380723,1747535435595,-151.0,0.00013698,2]
[361380724,1747535435604,-151.0,0.00013698,2]
[361380725,1747535435613,-241.818127,0.00013698,2]
[361380726,1747535435623,-412.02557043,0.00013698,2]
[361380727,1747535435632,-413.43242481,0.00013698,2]
[361380728,1747535435641,-450.0,0.00013698,2]
[361380729,1747535435650,-509.88817356,0.00013698,2]
[361380730,1747535435659,-450.0,0.00013698,2]
[361380731,1747535435668,-406.0000387,0.00013698,2]
[361380732,1747535435677,-1014.57956535,0.00013698,2]
[361380733,1747535435685,-423.22144428,0.00013698,2]
[361380734,1747535435694,-406.79503389,0.00013698,2]
[361380735,1747535435704,-450.0,0.00013698,2]
[361380736,1747535435713,-411.27567292,0.00013698,2]
[361380737,1747535435723,-450.0,0.00013698,2]
[361380738,1747535435732,-459.80609925,0.00013698,2]
[361380739,1747535435742,-450.0,0.00013698,2]
[361380740,1747535435751,-414.17346161,0.00013698,2]
[361380741,1747535435760,-450.0,0.00013698,2]
[361380742,1747535435771,-450.0,0.00013698,2]
[361380743,1747535435789,-450.0,0.00013698,2]
[361380744,1747535435799,-419.00329191,0.00013698,2]
[361380745,1747535435809,-450.0,0.00013698,2]
[361380746,1747535435818,-458.91365216,0.00013698,2]
[361380747,1747535435829,-450.0,0.00013698,2]
[361380748,1747535435838,-457.54792224,0.00013698,2]
[361380749,1747535435847,-450.0,0.00013698,2]
[361380750,1747535435857,-412.67648568,0.00013698,2]
[361380752,1747535435866,-414.12059775,0.00013698,2]
[361380753,1747535435875,-411.29932528,0.00013698,2]
[361380754,1747535435884,-578.8989927,0.00013698,2]
[361380755,1747535435893,-505.16864745,0.00013698,2]
[361380756,1747535435903,-450.0,0.00013698,2]
[361380757,1747535435913,-450.0,0.00013698,2]
[361380758,1747535435922,-505.1426802,0.00013698,2]
[361380759,1747535435931,-450.0,0.00013698,2]
[361380760,1747535435940,-450.0,0.00013698,2]
[361380761,1747535435949,-450.0,0.00013698,2]
[361380762,1747535435958,-478.44168089,0.00013698,2]
[361380763,1747535435967,-450.0,0.00013698,2]
[361380764,1747535435976,-450.0,0.00013698,2]
[361380765,1747535435986,-450.0,0.00013698,2]
[361380766,1747535435995,-399.23731718,0.00013698,2]
[361380767,1747535436004,-450.0,0.00013698,2]
[361380768,1747535436013,-450.0,0.00013698,2]
[361380769,1747535436022,-450.0,0.00013698,2]
[361380770,1747535436031,-455.40656437,0.00013698,2]
[361380771,1747535436040,-456.56011527,0.00013698,2]
[361380772,1747535436050,-558.06641862,0.00013698,2]
[361380773,1747535436059,-544.20425071,0.00013698,2]
[361380774,1747535436068,-450.0,0.00013698,2]
[361380775,1747535436077,-450.0,0.00013698,2]
[361380776,1747535436086,-457.89878127,0.00013698,2]
[361380777,1747535436095,-458.23274056,0.00013698,2]
[361380778,1747535436103,-450.0,0.00013698,2]
[361380779,1747535436113,-405.8651873,0.00013698,2]
[361380780,1747535436122,-455.80964609,0.00013698,2]
[361380781,1747535436131,-450.0,0.00013698,2]
[361380782,1747535436140,-455.95454974,0.00013698,2]
[361380783,1747535436149,-450.0,0.00013698,2]
[361380784,1747535436158,-414.98312937,0.00013698,2]
[361380785,1747535436167,-450.0,0.00013698,2]
[361380786,1747535436299,-411.91153829,0.00013698,2]
[361380787,1747535436309,-450.0,0.00013698,2]
[361380788,1747535436318,-453.73943421,0.00013698,2]
[361380789,1747535436328,-450.0,0.00013698,2]
[361380790,1747535436337,-450.0,0.00013698,2]
[361380791,1747535436346,-217.6728376,0.00013698,2]
[361380792,1747535436354,-519.14106225,0.00013698,2]
[361380793,1747535436364,-410.82896797,0.00013698,2]
[361380794,1747535436373,-411.75642779,0.00013698,2]
[361380795,1747535436382,-450.0,0.00013698,2]
[361380796,1747535436391,-450.0,0.00013698,2]
[361380797,1747535436400,-450.0,0.00013698,2]
[361380798,1747535436409,-450.0,0.00013698,2]
[361380799,1747535436419,-450.0,0.00013698,2]
[361380800,1747535436428,-450.0,0.00013698,2]
[361380801,1747535436437,-424.18148356,0.00013698,2]
[361380802,1747535436446,-450.0,0.00013698,2]
[361380803,1747535436455,-450.0,0.00013698,2]
[361380804,1747535436464,-455.22940421,0.00013698,2]
[361380805,1747535436474,-455.10578238,0.00013698,2]
[361380806,1747535436483,-450.0,0.00013698,2]
[361380807,1747535436492,-408.77794614,0.00013698,2]
[361380808,1747535436501,-450.0,0.00013698,2]
[361380809,1747535436510,-408.57658459,0.00013698,2]
[361380810,1747535436519,-1107.9,0.00013698,2]
[361380811,1747535436528,-456.34526907,0.00013698,2]
[361380812,1747535436537,-151.310131,0.00013698,2]
[361380813,1747535436546,-450.0,0.00013698,2]
[361380814,1747535436555,-450.0,0.00013698,2]
[361380815,1747535436564,-450.0,0.00013698,2]
[361380816,1747535436573,-450.0,0.00013698,2]
[361380817,1747535436582,-450.0,0.00013698,2]
[361380818,1747535436591,-450.0,0.00013698,2]
[361380819,1747535436600,-450.0,0.00013698,2]
[361380820,1747535436609,-450.0,0.00013698,2]
[361380821,1747535436618,-450.0,0.00013698,2]
[361380822,1747535436627,-450.0,0.00013698,2]
[361380823,1747535436637,-461.31536628,0.00013698,2]
[361380824,1747535436646,-450.0,0.00013698,2]
[361380825,1747535436655,-559.96605577,0.00013698,2]
[361380826,1747535436664,-450.0,0.00013698,2]
[361380827,1747535436675,-401.8723804,0.00013698,2]
[361380828,1747535436684,-450.0,0.00013698,2]
[361380829,1747535436694,-457.74408148,0.00013698,2]
[361380830,1747535436703,-450.0,0.00013698,2]
[361380831,1747535436713,-450.0,0.00013698,2]
[361380832,1747535436724,-450.0,0.00013698,2]
[361380833,1747535436734,-450.0,0.00013698,2]
[361380834,1747535436743,-559.47126151,0.00013698,2]
[361380835,1747535436752,-450.0,0.00013698,2]
[361380836,1747535436762,-450.0,0.00013698,2]
[361380837,1747535436771,-450.0,0.00013698,2]
[361380838,1747535436784,-450.0,0.00013698,2]
[361380839,1747535436794,-450.0,0.00013698,2]
[361380840,1747535436803,-450.0,0.00013698,2]
[361380841,1747535436812,-450.0,0.00013698,2]
[361380842,1747535436822,-450.0,0.00013698,2]
[361380843,1747535436831,-406.72475699,0.00013698,2]
[361380844,1747535436840,-456.3744718,0.00013698,2]
[361380845,1747535436850,-450.0,0.00013698,2]
[361380846,1747535436860,-450.0,0.00013698,2]
[361380847,1747535436870,-450.0,0.00013698,2]
[361380848,1747535436879,-450.0,0.00013698,2]
[361380849,1747535436888,-450.0,0.00013698,2]
[361380850,1747535436897,-483.83899235,0.00013698,2]
[361380851,1747535436906,-450.0,0.00013698,2]
[361380852,1747535436916,-450.0,0.00013698,2]
[361380853,1747535436926,-450.0,0.00013698,2]
[361380854,1747535436935,-426.90037576,0.00013698,2]
[361380855,1747535436944,-495.62672433,0.00013698,2]
[361380856,1747535436954,-450.0,0.00013698,2]
[361380857,1747535436963,-450.0,0.00013698,2]
[361380858,1747535436972,-494.55766709,0.00013698,2]
[361380859,1747535436981,-402.11409085,0.00013698,2]
[361380860,1747535436990,-450.0,0.00013698,2]
[361380861,1747535436999,-454.53180787,0.00013698,2]
[361380862,1747535437008,-455.17384098,0.00013698,2]
[361380863,1747535437017,-450.0,0.00013698,2]
[361380864,1747535437027,-188.15000346,0.00013698,2]
[361380865,1747535437036,-450.0,0.00013698,2]
[361380866,1747535437045,-406.7134685,0.00013698,2]
[361380867,1747535437054,-450.0,0.00013698,2]
[361380868,1747535437063,-450.0,0.00013698,2]
[361380869,1747535437072,-411.67694604,0.00013698,2]
[361380870,1747535437081,-450.0,0.00013698,2]
[361380871,1747535437091,-450.0,0.00013698,2]
[361380872,1747535437100,-450.0,0.00013698,2]
[361380873,1747535437110,-450.0,0.00013698,2]
[361380874,1747535437119,-450.0,0.00013698,2]
[361380875,1747535437128,-1081.44,0.00013698,2]
[361380876,1747535437138,-450.0,0.00013698,2]
[361380877,1747535437149,-450.0,0.00013698,2]
[361380878,1747535437158,-450.0,0.00013698,2]
[361380879,1747535437169,-450.0,0.00013698,2]
[361380881,1747535437178,-548.79,0.00013698,2]
[361380882,1747535437188,-480.61,0.00013698,2]
[361380883,1747535437198,-450.0,0.00013698,2]
[361380884,1747535437208,-450.0,0.00013698,2]
[361380885,1747535437218,-450.0,0.00013698,2]
[361380886,1747535437227,-450.0,0.00013698,2]
[361380887,1747535437236,-435.04071221,0.00013698,2]
[361380888,1747535437245,-450.0,0.00013698,2]
[361380889,1747535437254,-475.67083544,0.00013698,2]
[361380890,1747535437263,-450.0,0.00013698,2]
[361380891,1747535437273,-450.0,0.00013698,2]
[361380892,1747535437283,-450.0,0.00013698,2]
[361380893,1747535437294,-450.0,0.00013698,2]
[361380894,1747535437304,-450.0,0.00013698,2]
[361380895,1747535437314,-450.0,0.00013698,2]
[361380896,1747535437324,-458.62629164,0.00013698,2]
[361380897,1747535437335,-288.32632,0.00013698,2]
[361380898,1747535437345,-288.32632,0.00013698,2]
[361380899,1747535437355,-450.0,0.00013698,2]
[361380900,1747535437364,-288.32632,0.00013698,2]
[361380901,1747535437373,-288.32632,0.00013698,2]
[361380902,1747535437383,-288.32632,0.00013698,2]
[361380904,1747535437394,-288.32632,0.00013698,2]
[361380906,1747535437405,-450.0,0.00013698,2]
[361380908,1747535437414,-288.32632,0.00013698,2]
[361380909,1747535437423,-450.0,0.00013698,2]
[361380911,1747535437432,-288.32632,0.00013698,2]
[361380913,1747535437441,-288.32632,0.00013698,2]
[361380915,1747535437450,-288.32632,0.00013698,2]
[361380917,1747535437459,-288.32632,0.00013698,2]
[361380919,1747535437469,-450.0,0.00013698,2]
[361380921,1747535437478,-2131.66,0.00013698,2]
[361380923,1747535437487,-288.32632,0.00013698,2]
[361380925,1747535437497,-288.32632,0.00013698,2]
[361380927,1747535437506,-288.32632,0.00013698,2]
[361380929,1747535437516,-288.32632,0.00013698,2]
[361380931,1747535437525,-288.32632,0.00013698,2]
[361380933,1747535437534,-288.32632,0.00013698,2]
[361380935,1747535437544,-288.326316,0.00013698,2]
[361380937,1747535437553,-466.36962235,0.00013698,2]
[361380939,1747535437562,-450.0,0.00013698,2]
[361380941,1747535437571,-450.0,0.00013698,2]
[361380943,1747535437581,-450.0,0.00013698,2]
[361380945,1747535437590,-605.18,0.00013698,2]
[361380947,1747535437600,-456.97162507,0.00013698,2]
[361380949,1747535437609,-450.0,0.00013698,2]
[361380951,1747535437619,-151.0,0.00013698,2]
[361380953,1747535437628,-427.13372877,0.00013698,2]
[361380955,1747535437637,-151.0,0.00013698,2]
[361380957,1747535437646,-285.945993,0.00013698,2]
[361380959,1747535437655,-581.3279814,0.00013698,2]
[361380961,1747535437665,-450.0,0.00013698,2]
[361380963,1747535437674,-450.0,0.00013698,2]
[361380965,1747535437683,-415.23987964,0.00013698,2]
[361380967,1747535437693,-174.882859,0.00013699,2]
[361380969,1747535437703,-151.0,0.00013699,2]
[361380971,1747535437712,-151.0,0.00013699,2]
[361380973,1747535437722,-151.0,0.00013699,2]
[361380975,1747535437730,-151.0,0.00013699,2]
[361380977,1747535437739,-151.0,0.00013699,2]
[361380979,1747535437749,-151.0,0.00013699,2]
[361380981,1747535437758,-151.0,0.00013699,2]
[361380983,1747535437767,-151.0,0.00013699,2]
[361380985,1747535437779,-151.0,0.00013699,2]
[361380987,1747535437788,-151.0,0.00013699,2]
[361380989,1747535437798,-151.0,0.00013699,2]
[361380990,1747535437808,-151.0,0.00013699,2]
[361380991,1747535437817,-151.0,0.00013699,2]
[361380993,1747535437828,-224.226174,0.00013699,2]
[361380994,1747535437837,-170.5761525,0.00013699,2]
[361380996,1747535437847,-227.99848606,0.00013835,2]
[361380998,1747535437857,-461.71874126,0.00013835,2]
[361381000,1747535437866,-462.13736806,0.00013835,2]
[361381001,1747535437875,-461.59557707,0.00013835,2]
[361381003,1747535437884,-479.40259369,0.00013835,2]
[361381004,1747535437894,-451.40241693,0.00013835,2]
[361381005,1747535437903,-460.99328846,0.00013835,2]
[361381006,1747535437913,-460.59165771,0.00013835,2]
[361381007,1747535437922,-450.0,0.00013835,2]
[361381008,1747535437931,-455.52276819,0.00013835,2]
[361381009,1747535437942,-462.3292455,0.00013835,2]
[361381010,1747535437951,-461.2780999,0.00013835,2]
[361381011,1747535437960,-460.30859235,0.00013835,2]
[361381012,1747535437970,-225.53380272,0.00013835,2]
[361381013,1747535437979,-459.68039519,0.00013835,2]
[361381014,1747535437988,-352.75493175,0.00013835,2]
[361381015,1747535437998,-450.0,0.00013835,2]
[361381016,1747535438007,-457.73763708,0.00013835,2]
[361381017,1747535438017,-562.46,0.00013835,2]
[361381018,1747535438026,-438.93984062,0.00013835,2]
[361381019,1747535438035,-451.40513542,0.00013835,2]
[361381020,1747535438045,-401.97059568,0.00013835,2]
[361381021,1747535438054,-450.0,0.00013835,2]
[361381022,1747535438064,-415.53456928,0.00013835,2]
[361381023,1747535438073,-450.0,0.00013835,2]
[361381024,1747535438082,-450.0,0.00013835,2]
[361381025,1747535438091,-179.23,0.00013835,2]
[361381026,1747535438100,-460.05532481,0.00013835,2]
[361381027,1747535438109,-450.0,0.00013835,2]
[361381028,1747535438119,-450.0,0.00013835,2]
[361381029,1747535438128,-462.50099461,0.00013835,2]
[361381030,1747535438137,-450.0,0.00013835,2]
[361381031,1747535438146,-357.02163938,0.00013835,2]
[361381032,1747535438156,-334.13332259,0.00013835,2]
[361381033,1747535438165,-453.97277735,0.00013835,2]
[361381034,1747535438174,-461.54203413,0.00013835,2]
[361381035,1747535438184,-458.16023263,0.00013835,2]
[361381036,1747535438193,-167.85099538,0.00013835,2]
[361381037,1747535438202,-456.94272629,0.00013835,2]
[361381038,1747535438211,-450.0,0.00013835,2]
[361381039,1747535438221,-450.0,0.00013835,2]
[361381040,1747535438230,-457.627564,0.00013835,2]
[361381041,1747535438240,-456.19215866,0.00013835,2]
[361381042,1747535438249,-450.0,0.00013835,2]
[361381043,1747535438258,-570.90342896,0.00013835,2]
[361381044,1747535438268,-450.0,0.00013835,2]
[361381045,1747535438277,-450.0,0.00013835,2]
[361381046,1747535438286,-450.0,0.00013835,2]
[361381047,1747535438295,-450.0,0.00013835,2]
[361381048,1747535438304,-456.49723713,0.00013835,2]
[361381049,1747535438313,-456.11179945,0.00013835,2]
[361381050,1747535438322,-455.7540092,0.00013835,2]
[361381051,1747535438332,-450.0,0.00013835,2]
[361381052,1747535438341,-436.61780461,0.00013835,2]
[361381053,1747535438350,-454.53995541,0.00013835,2]
[361381054,1747535438359,-457.43744125,0.00013835,2]
[361381055,1747535438368,-450.0,0.00013835,2]
[361381056,1747535438377,-450.0,0.00013835,2]
[361381057,1747535438386,-350.80108247,0.00013835,2]
[361381058,1747535438395,-424.67126998,0.00013835,2]
[361381059,1747535438404,-460.4378997,0.00013835,2]
[361381060,1747535438414,-180.90168135,0.00013835,2]
[361381061,1747535438423,-457.38486467,0.00013835,2]
[361381062,1747535438434,-455.61850411,0.00013835,2]
[361381063,1747535438444,-458.32715582,0.00013835,2]
[361381064,1747535438455,-450.0,0.00013835,2]
[361381065,1747535438465,-459.31838179,0.00013835,2]
[361381066,1747535438477,-460.93349232,0.00013835,2]
[361381067,1747535438488,-188.4896977,0.00013835,2]
[361381068,1747535438499,-450.0,0.00013835,2]
[361381069,1747535438509,-450.0,0.00013835,2]
[361381070,1747535438519,-450.0,0.00013835,2]
[361381071,1747535438529,-456.45717847,0.00013835,2]
[361381072,1747535438539,-450.0,0.00013835,2]
[361381073,1747535438548,-450.0,0.00013835,2]
[361381074,1747535438557,-450.0,0.00013835,2]
[361381075,1747535438566,-457.50398918,0.00013835,2]
[361381076,1747535438575,-459.63942554,0.00013835,2]
[361381077,1747535438587,-450.0,0.00013835,2]
[361381078,1747535438600,-450.0,0.00013835,2]
[361381079,1747535438611,-417.51076864,0.00013835,2]
[361381080,1747535438621,-450.0,0.00013835,2]
[361381081,1747535438631,-577.72,0.00013835,2]
[361381082,1747535438642,-450.0,0.00013835,2]
[361381083,1747535438652,-450.0,0.00013835,2]
[361381084,1747535438662,-450.0,0.00013835,2]
[361381085,1747535438671,-456.07587961,0.00013835,2]
[361381086,1747535438680,-450.0,0.00013835,2]
[361381087,1747535438689,-239.74079694,0.00013835,2]
[361381088,1747535438698,-450.0,0.00013835,2]
[361381089,1747535438707,-450.0,0.00013835,2]
[361381090,1747535438716,-450.0,0.00013835,2]
[361381091,1747535438727,-460.25249932,0.00013835,2]
[361381092,1747535438736,-245.48236801,0.00013835,2]
[361381093,1747535438746,-450.0,0.00013835,2]
[361381094,1747535438754,-450.0,0.00013835,2]
[361381095,1747535438763,-450.0,0.00013835,2]
[361381096,1747535438773,-450.0,0.00013835,2]
[361381097,1747535438786,-450.0,0.00013835,2]
[361381098,1747535438795,-450.0,0.00013835,2]
[361381099,1747535438804,-460.27972933,0.00013835,2]
[361381100,1747535438813,-565.55546862,0.00013835,2]
[361381101,1747535438823,-462.68006602,0.00013835,2]
[361381102,1747535438832,-450.0,0.00013835,2]
[361381103,1747535438842,-450.0,0.00013835,2]
[361381104,1747535438853,-461.86859252,0.00013835,2]
[361381105,1747535438862,-457.72521126,0.00013835,2]
[361381106,1747535438872,-222.66,0.00013835,2]
[361381107,1747535438881,-450.0,0.00013835,2]
[361381108,1747535438890,-463.57398079,0.00013835,2]
[361381109,1747535438899,-461.34448504,0.00013835,2]
[361381110,1747535438909,-450.0,0.00013835,2]
[361381111,1747535438918,-1107.9,0.00013835,2]
[361381112,1747535438928,-222.27300803,0.00013835,2]
[361381113,1747535438937,-450.0,0.00013835,2]
[361381114,1747535438947,-457.8481705,0.00013835,2]
[361381115,1747535438956,-235.29988213,0.00013835,2]
[361381116,1747535438966,-450.0,0.00013835,2]
[361381117,1747535438975,-450.0,0.00013835,2]
[361381118,1747535438985,-173.29834,0.00013835,2]
[361381119,1747535438994,-319.06661106,0.00013835,2]
[361381120,1747535439003,-450.0,0.00013835,2]
[361381121,1747535439012,-450.0,0.00013835,2]
[361381122,1747535439021,-173.24483015,0.00013835,2]
[361381123,1747535439030,-159.30064861,0.00013835,2]
[361381124,1747535439040,-450.0,0.00013835,2]
[361381125,1747535439049,-450.0,0.00013835,2]
[361381126,1747535439058,-589.41,0.00013835,2]
[361381127,1747535439067,-450.0,0.00013835,2]
[361381128,1747535439077,-450.0,0.00013835,2]
[361381129,1747535439086,-456.15650016,0.00013835,2]
[361381130,1747535439095,-281.58663058,0.00013835,2]
[361381131,1747535439104,-450.0,0.00013835,2]
[361381132,1747535439114,-450.0,0.00013835,2]
[361381133,1747535439124,-543.62,0.00013835,2]
[361381134,1747535439133,-459.16181505,0.00013835,2]
[361381135,1747535439142,-450.0,0.00013835,2]
[361381136,1747535439151,-205.59732095,0.00013835,2]
[361381137,1747535439161,-184.96538608,0.00013835,2]
[361381139,1747535439172,-450.0,0.00013835,2]
[361381140,1747535439183,-450.0,0.00013835,2]
[361381142,1747535439194,-450.0,0.00013835,2]
[361381143,1747535439203,-450.0,0.00013835,2]
[361381145,1747535439213,-417.88217678,0.00013835,2]
[361381147,1747535439224,-450.0,0.00013835,2]
[361381148,1747535439233,-492.51071989,0.00013835,2]
[361381150,1747535439242,-450.0,0.00013835,2]
[361381152,1747535439252,-222.73196707,0.00013835,2]
[361381153,1747535439261,-450.0,0.00013835,2]
[361381155,1747535439270,-251.69633004,0.00013835,2]
[361381157,1747535439280,-259.8103666,0.00013835,2]
[361381159,1747535439290,-450.0,0.00013835,2]
[361381160,1747535439300,-548.02,0.00013835,2]
[361381162,1747535439310,-450.0,0.00013835,2]
[361381164,1747535439319,-450.0,0.00013835,2]
[361381165,1747535439329,-450.0,0.00013835,2]
[361381167,1747535439338,-597.32,0.00013835,2]
[361381168,1747535439348,-1081.44,0.00013835,2]
[361381170,1747535439357,-450.0,0.00013835,2]
[361381172,1747535439367,-450.0,0.00013835,2]
[361381174,1747535439376,-302.91160841,0.00013835,2]
[361381176,1747535439386,-548.79,0.00013835,2]
[361381178,1747535439397,-454.3542191,0.00013835,2]
[361381179,1747535439407,-450.0,0.00013835,2]
[361381181,1747535439417,-450.0,0.00013835,2]
[361381183,1747535439426,-450.0,0.00013835,2]
[361381184,1747535439435,-450.0,0.00013835,2]
[361381186,1747535439444,-450.0,0.00013835,2]
[361381191,1747535439453,-415.61760506,0.00013835,2]
[361381194,1747535439586,-450.0,0.00013835,2]
[361381196,1747535439595,-416.18303345,0.00013835,2]
[361381199,1747535439605,-450.0,0.00013835,2]
[361381201,1747535439614,-450.0,0.00013835,2]
[361381202,1747535439623,-450.0,0.00013835,2]
[361381204,1747535439635,-549.15083266,0.00013835,2]
[361381206,1747535439645,-2131.66,0.00013835,2]
[361381208,1747535439655,-450.0,0.00013835,2]
[361381210,1747535439665,-402.9818722,0.00013835,2]
[361381212,1747535439674,-450.0,0.00013835,2]
[361381214,1747535439684,-605.18,0.00013835,2]
[361381216,1747535439695,-460.3594437,0.00013835,2]
[361381218,1747535439704,-450.0,0.00013835,2]
[361381220,1747535439713,-457.51066098,0.00013835,2]
[361381222,1747535439722,-328.46217052,0.0001385,2]
[361381224,1747535439731,-3393.25370708,0.000139,2]
[361381226,1747535439740,-1898.17502245,0.00013937,2]
[361381227,1747535439750,-462.25837582,0.00013972,2]
[361381229,1747535439759,-458.18834831,0.00013972,2]
[361381231,1747535439769,-584.78982827,0.00013972,2]
[361381233,1747535439781,-467.70129886,0.00013972,2]
[361381235,1747535439790,-458.00120223,0.00013972,2]
[361381237,1747535439799,-241.25834771,0.00013972,2]
[361381239,1747535439809,-450.0,0.00013972,2]
[361381241,1747535439819,-450.0,0.00013972,2]
[361381243,1747535439828,-237.56242653,0.00013972,2]
[361381245,1747535439837,-450.0,0.00013972,2]
[361381247,1747535439846,-587.71567805,0.00013972,2]
[361381249,1747535439857,-331.80172062,0.00013972,2]
[361381251,1747535439866,-450.0,0.00013972,2]
[361381253,1747535439876,-511.85555742,0.00013972,2]
[361381255,1747535439885,-562.92262169,0.00013972,2]
[361381257,1747535439895,-450.0,0.00013972,2]
[361381259,1747535439905,-540.29507171,0.00013972,2]
[361381261,1747535439915,-450.0,0.00013972,2]
[361381263,1747535439924,-162.8317805,0.00013972,2]
[361381265,1747535439935,-450.0,0.00013972,2]
[361381267,1747535439945,-450.0,0.00013972,2]